[Event "Titled Tuesday Blitz June 28 Late 2022"]
[White "Flynn, Jacob"]
[Black "Rastbod, Ali"]
[WhiteFideId "2509393"]
[BlackFideId "12567477"]
[WhiteElo "1896"]
[BlackElo "2135"]
[Result "1/2-1/2"]
[Round "01"]
[TimeControl "180+1"]
[Date "2022.06.29"]
[WhiteClock "0:00:06"]
[BlackClock "0:00:05"]

1. d4 {[%clk 0:03:00]}  Nf6 {[%clk 0:02:57]} 2. c4 {[%clk 0:03:01]}  b6 {[%clk 0:02:55]} 3. Nc3 {[%clk 0:02:59]}  Bb7 {[%clk 0:02:56]} 4. Qc2 {[%clk 0:02:59]}  d5 {[%clk 0:02:56]} 5. cxd5 {[%clk 0:02:59]}  Nxd5 {[%clk 0:02:57]} 6. e4 {[%clk 0:02:59]}  Nxc3 {[%clk 0:02:57]} 7. bxc3 {[%clk 0:03:00]}  e5 {[%clk 0:02:58]} 8. Nf3 {[%clk 0:02:55]}  exd4 {[%clk 0:02:58]} 9. cxd4 {[%clk 0:02:54]}  Bb4+ {[%clk 0:02:58]} 10. Bd2 {[%clk 0:02:54]}  Bxd2+ {[%clk 0:02:59]} 11. Qxd2 {[%clk 0:02:55]}  Bxe4 {[%clk 0:02:54]} 12. Qe3 {[%clk 0:02:31]}  Qe7 {[%clk 0:02:46]} 13. Be2 {[%clk 0:02:19]}  Bd5 {[%clk 0:02:29]} 14. O-O {[%clk 0:01:39]}  Qxe3 {[%clk 0:02:27]} 15. fxe3 {[%clk 0:01:40]}  O-O {[%clk 0:02:09]} 16. Rfc1 {[%clk 0:01:26]}  c6 {[%clk 0:01:51]} 17. Ne5 {[%clk 0:01:24]}  f6 {[%clk 0:01:38]} 18. Nd3 {[%clk 0:01:24]}  Re8 {[%clk 0:00:50]} 19. Kf2 {[%clk 0:01:22]}  Be4 {[%clk 0:00:36]} 20. a4 {[%clk 0:01:08]}  Nd7 {[%clk 0:00:25]} 21. Nb4 {[%clk 0:01:08]}  c5 {[%clk 0:00:25]} 22. Na6 {[%clk 0:01:01]}  cxd4 {[%clk 0:00:24]} 23. Nc7 {[%clk 0:00:56]}  dxe3+ {[%clk 0:00:23]} 24. Kxe3 {[%clk 0:00:56]}  Bxg2+ {[%clk 0:00:22]} 25. Nxe8 {[%clk 0:00:56]}  Rxe8+ {[%clk 0:00:23]} 26. Kf2 {[%clk 0:00:57]}  Bd5 {[%clk 0:00:22]} 27. Rc7 {[%clk 0:00:38]}  Nc5 {[%clk 0:00:22]} 28. Rxa7 {[%clk 0:00:33]}  Ne4+ {[%clk 0:00:22]} 29. Kf1 {[%clk 0:00:28]}  Nd2+ {[%clk 0:00:20]} 30. Kf2 {[%clk 0:00:24]}  Ne4+ {[%clk 0:00:13]} 31. Kf1 {[%clk 0:00:24]}  Nc3 {[%clk 0:00:12]} 32. Bb5 {[%clk 0:00:21]}  Nxb5 {[%clk 0:00:11]} 33. axb5 {[%clk 0:00:21]}  Bc4+ {[%clk 0:00:12]} 34. Kf2 {[%clk 0:00:19]}  Bxb5 {[%clk 0:00:12]} 35. Ra8 {[%clk 0:00:17]}  Kf7 {[%clk 0:00:12]} 36. Rxe8 {[%clk 0:00:17]}  Bxe8 {[%clk 0:00:12]} 37. Ra7+ {[%clk 0:00:16]}  Kg6 {[%clk 0:00:12]} 38. Rb7 {[%clk 0:00:17]}  b5 {[%clk 0:00:11]} 39. Rb8 {[%clk 0:00:16]}  Bd7 {[%clk 0:00:10]} 40. Rb7 {[%clk 0:00:16]}  Bc6 {[%clk 0:00:10]} 41. Rb6 {[%clk 0:00:17]}  Be8 {[%clk 0:00:10]} 42. Rb8 {[%clk 0:00:17]}  Kf7 {[%clk 0:00:09]} 43. Rb7+ {[%clk 0:00:13]}  Kf8 {[%clk 0:00:10]} 44. Ke3 {[%clk 0:00:13]}  Bc6 {[%clk 0:00:06]} 45. Rb6 {[%clk 0:00:11]}  Bd7 {[%clk 0:00:06]} 46. Kd4 {[%clk 0:00:07]}  Ke7 {[%clk 0:00:06]} 47. h4 {[%clk 0:00:07]}  h5 {[%clk 0:00:04]} 48. Rb8 {[%clk 0:00:04]}  g5 {[%clk 0:00:02]} 49. Rh8 {[%clk 0:00:03]}  gxh4 {[%clk 0:00:01]} 50. Rxh5 {[%clk 0:00:03]}  h3 {[%clk 0:00:02]} 51. Ke3 {[%clk 0:00:03]}  Kd6 {[%clk 0:00:02]} 52. Kd4 {[%clk 0:00:03]}  b4 {[%clk 0:00:03]} 53. Kc4 {[%clk 0:00:03]}  Be6+ {[%clk 0:00:02]} 54. Kxb4 {[%clk 0:00:03]}  f5 {[%clk 0:00:02]} 55. Kc3 {[%clk 0:00:04]}  Ke5 {[%clk 0:00:03]} 56. Kd2 {[%clk 0:00:04]}  Kf4 {[%clk 0:00:03]} 57. Ke1 {[%clk 0:00:05]}  Kg4 {[%clk 0:00:04]} 58. Rh7 {[%clk 0:00:01]}  Kg3 {[%clk 0:00:03]} 59. Kf1 {[%clk 0:00:02]}  h2 {[%clk 0:00:03]} 60. Rg7+ {[%clk 0:00:02]}  Kh3 {[%clk 0:00:02]} 61. Rh7+ {[%clk 0:00:03]}  Kg3 {[%clk 0:00:02]} 62. Rg7+ {[%clk 0:00:03]}  Kf4 {[%clk 0:00:02]} 63. Rh7 {[%clk 0:00:04]}  Bc4+ {[%clk 0:00:03]} 64. Kf2 {[%clk 0:00:04]}  Bd5 {[%clk 0:00:02]} 65. Rxh2 {[%clk 0:00:04]}  Be4 {[%clk 0:00:02]} 66. Rh4+ {[%clk 0:00:04]}  Ke5 {[%clk 0:00:03]} 67. Rh8 {[%clk 0:00:05]}  Kf4 {[%clk 0:00:03]} 68. Rh4+ {[%clk 0:00:05]}  Ke5 {[%clk 0:00:04]} 69. Rh8 {[%clk 0:00:06]}  Kf4 {[%clk 0:00:05]} 70. Rh4+ {[%clk 0:00:06]} 1/2-1/2


[Site "https://www.chess.com"]

[Event "Titled Tuesday Blitz June 28 Late 2022"]
[White "Gatterer, Florian"]
[Black "Adewumi, Tanitoluwa"]
[WhiteFideId "811688"]
[BlackFideId "30966396"]
[WhiteElo "2218"]
[BlackElo "2659"]
[Result "0-1"]
[Round "01"]
[TimeControl "180+1"]
[Date "2022.06.29"]
[WhiteClock "0:00:03"]
[BlackClock "0:00:06"]

1. d4 {[%clk 0:03:00]}  Nf6 {[%clk 0:02:58]} 2. Nf3 {[%clk 0:02:55]}  e6 {[%clk 0:02:58]} 3. g3 {[%clk 0:02:55]}  b6 {[%clk 0:02:51]} 4. Bg2 {[%clk 0:02:53]}  Bb7 {[%clk 0:02:51]} 5. O-O {[%clk 0:02:53]}  Be7 {[%clk 0:02:46]} 6. c4 {[%clk 0:02:53]}  O-O {[%clk 0:02:42]} 7. Re1 {[%clk 0:02:53]}  Ne4 {[%clk 0:02:37]} 8. Nbd2 {[%clk 0:02:43]}  Nxd2 {[%clk 0:02:17]} 9. Bxd2 {[%clk 0:02:43]}  d6 {[%clk 0:02:14]} 10. e4 {[%clk 0:02:41]}  Nd7 {[%clk 0:02:07]} 11. b4 {[%clk 0:02:40]}  g6 {[%clk 0:01:59]} 12. Bc3 {[%clk 0:02:33]}  Bf6 {[%clk 0:01:57]} 13. Qb3 {[%clk 0:02:23]}  Bg7 {[%clk 0:01:53]} 14. a4 {[%clk 0:02:22]}  a6 {[%clk 0:01:48]} 15. a5 {[%clk 0:02:15]}  b5 {[%clk 0:01:29]} 16. c5 {[%clk 0:02:14]}  Qe7 {[%clk 0:01:10]} 17. Rad1 {[%clk 0:02:13]}  Rfe8 {[%clk 0:01:04]} 18. h4 {[%clk 0:02:10]}  Rad8 {[%clk 0:01:02]} 19. h5 {[%clk 0:01:49]}  Nf6 {[%clk 0:00:58]} 20. hxg6 {[%clk 0:01:45]}  hxg6 {[%clk 0:00:57]} 21. cxd6 {[%clk 0:01:30]}  cxd6 {[%clk 0:00:55]} 22. Nd2 {[%clk 0:01:27]}  Rc8 {[%clk 0:00:52]} 23. Bb2 {[%clk 0:01:26]}  Bh6 {[%clk 0:00:49]} 24. f4 {[%clk 0:01:20]}  Ng4 {[%clk 0:00:43]} 25. Bf3 {[%clk 0:01:14]}  Nf6 {[%clk 0:00:40]} 26. Kg2 {[%clk 0:01:14]}  Bg7 {[%clk 0:00:30]} 27. Rc1 {[%clk 0:01:14]}  Qd7 {[%clk 0:00:27]} 28. Qd3 {[%clk 0:01:10]}  e5 {[%clk 0:00:26]} 29. fxe5 {[%clk 0:01:04]}  dxe5 {[%clk 0:00:26]} 30. d5 {[%clk 0:01:05]}  Bh6 {[%clk 0:00:24]} 31. Rxc8 {[%clk 0:01:01]}  Rxc8 {[%clk 0:00:24]} 32. Rc1 {[%clk 0:01:01]}  Rxc1 {[%clk 0:00:22]} 33. Bxc1 {[%clk 0:01:00]}  Ng4 {[%clk 0:00:22]} 34. Bxg4 {[%clk 0:00:56]}  Qxg4 {[%clk 0:00:23]} 35. Qf3 {[%clk 0:00:56]}  Qc8 {[%clk 0:00:19]} 36. Qd1 {[%clk 0:00:49]}  Qc3 {[%clk 0:00:18]} 37. Nb3 {[%clk 0:00:44]}  Bxc1 {[%clk 0:00:17]} 38. Nxc1 {[%clk 0:00:43]}  f5 {[%clk 0:00:17]} 39. Ne2 {[%clk 0:00:35]}  Qc4 {[%clk 0:00:17]} 40. exf5 {[%clk 0:00:33]}  Bxd5+ {[%clk 0:00:15]} 41. Kf2 {[%clk 0:00:33]}  gxf5 {[%clk 0:00:15]} 42. Qd2 {[%clk 0:00:33]}  Kf7 {[%clk 0:00:15]} 43. Qg5 {[%clk 0:00:32]}  Qe4 {[%clk 0:00:10]} 44. Qh5+ {[%clk 0:00:28]}  Kg7 {[%clk 0:00:10]} 45. Qg5+ {[%clk 0:00:28]}  Kf7 {[%clk 0:00:10]} 46. Qh5+ {[%clk 0:00:28]}  Ke7 {[%clk 0:00:11]} 47. Qh7+ {[%clk 0:00:27]}  Bf7 {[%clk 0:00:11]} 48. Qh6 {[%clk 0:00:24]}  Qxb4 {[%clk 0:00:06]} 49. Qg5+ {[%clk 0:00:24]}  Kd7 {[%clk 0:00:05]} 50. Qxf5+ {[%clk 0:00:24]}  Be6 {[%clk 0:00:05]} 51. Qxe5 {[%clk 0:00:24]}  Qxa5 {[%clk 0:00:06]} 52. Nd4 {[%clk 0:00:23]}  Qb6 {[%clk 0:00:06]} 53. Ke3 {[%clk 0:00:19]}  b4 {[%clk 0:00:06]} 54. Qg7+ {[%clk 0:00:19]}  Kd6 {[%clk 0:00:05]} 55. Qf6 {[%clk 0:00:19]}  Kd5 {[%clk 0:00:03]} 56. Qg5+ {[%clk 0:00:16]}  Kc4 {[%clk 0:00:04]} 57. Qf6 {[%clk 0:00:16]}  b3 {[%clk 0:00:03]} 58. Qf1+ {[%clk 0:00:11]}  Kd5 {[%clk 0:00:02]} 59. Qf3+ {[%clk 0:00:10]}  Kd6 {[%clk 0:00:03]} 60. Qf4+ {[%clk 0:00:10]}  Kd7 {[%clk 0:00:03]} 61. Qf1 {[%clk 0:00:07]}  b2 {[%clk 0:00:04]} 62. Qb1 {[%clk 0:00:07]}  Ba2 {[%clk 0:00:04]} 63. Qh7+ {[%clk 0:00:05]}  Kc8 {[%clk 0:00:04]} 64. Qh8+ {[%clk 0:00:05]}  Kb7 {[%clk 0:00:04]} 65. Qh7+ {[%clk 0:00:04]}  Qc7 {[%clk 0:00:03]} 66. Qe4+ {[%clk 0:00:03]}  Ka7 {[%clk 0:00:04]} 67. Qd3 {[%clk 0:00:03]}  b1=Q {[%clk 0:00:04]} 68. Nb5+ {[%clk 0:00:02]}  Qxb5 {[%clk 0:00:03]} 69. Qd4+ {[%clk 0:00:03]}  Qbb6 {[%clk 0:00:04]} 70. Qxb6+ {[%clk 0:00:03]}  Qxb6+ {[%clk 0:00:05]} 71. Kf4 {[%clk 0:00:03]}  Bd5 {[%clk 0:00:05]} 72. Ke5 {[%clk 0:00:03]}  Qe3+ {[%clk 0:00:06]} 73. Kxd5 {[%clk 0:00:03]}  Qxg3 {[%clk 0:00:06]} 0-1


[Site "https://www.chess.com"]

[Event "Titled Tuesday Blitz June 28 Late 2022"]
[White "Glavina, Pablo"]
[Black "Jessel, Stephen"]
[WhiteFideId "100234"]
[BlackFideId "628859"]
[WhiteElo "2369"]
[BlackElo "2268"]
[Result "1-0"]
[Round "01"]
[TimeControl "180+1"]
[Date "2022.06.29"]
[WhiteClock "0:01:22"]
[BlackClock "0:00:02"]

1. c4 {[%clk 0:02:59]}  b6 {[%clk 0:02:59]} 2. Nf3 {[%clk 0:02:57]}  Bb7 {[%clk 0:02:59]} 3. g3 {[%clk 0:02:57]}  Bxf3 {[%clk 0:03:00]} 4. exf3 {[%clk 0:02:56]}  c5 {[%clk 0:03:00]} 5. b3 {[%clk 0:02:56]}  Nc6 {[%clk 0:03:01]} 6. Bb2 {[%clk 0:02:56]}  e6 {[%clk 0:02:56]} 7. Bg2 {[%clk 0:02:56]}  Nge7 {[%clk 0:02:56]} 8. O-O {[%clk 0:02:56]}  Nf5 {[%clk 0:02:57]} 9. f4 {[%clk 0:02:54]}  Be7 {[%clk 0:02:55]} 10. d3 {[%clk 0:02:53]}  Bf6 {[%clk 0:02:55]} 11. Qc2 {[%clk 0:02:52]}  Rc8 {[%clk 0:02:37]} 12. Nc3 {[%clk 0:02:50]}  O-O {[%clk 0:02:32]} 13. Ne4 {[%clk 0:02:50]}  Bxb2 {[%clk 0:02:13]} 14. Qxb2 {[%clk 0:02:50]}  Ncd4 {[%clk 0:02:02]} 15. Nd2 {[%clk 0:02:48]}  Rc7 {[%clk 0:01:50]} 16. Rae1 {[%clk 0:02:45]}  h5 {[%clk 0:01:46]} 17. Bh3 {[%clk 0:02:42]}  Qf6 {[%clk 0:01:43]} 18. Kg2 {[%clk 0:02:39]}  Qg6 {[%clk 0:01:32]} 19. Bxf5 {[%clk 0:02:38]}  Qxf5 {[%clk 0:01:30]} 20. Re3 {[%clk 0:02:33]}  d5 {[%clk 0:01:29]} 21. Nf3 {[%clk 0:02:32]}  dxc4 {[%clk 0:01:21]} 22. dxc4 {[%clk 0:02:29]}  Rd8 {[%clk 0:01:20]} 23. Rfe1 {[%clk 0:02:26]}  Nc2 {[%clk 0:01:07]} 24. Ne5 {[%clk 0:02:17]}  f6 {[%clk 0:00:57]} 25. Nf3 {[%clk 0:02:15]}  Rd6 {[%clk 0:00:51]} 26. Nh4 {[%clk 0:02:13]}  Nxe1+ {[%clk 0:00:44]} 27. Rxe1 {[%clk 0:02:12]}  Qd3 {[%clk 0:00:45]} 28. Nf3 {[%clk 0:01:58]}  Rcd7 {[%clk 0:00:45]} 29. Re3 {[%clk 0:01:58]}  Qd1 {[%clk 0:00:35]} 30. Re1 {[%clk 0:01:56]}  Qd3 {[%clk 0:00:31]} 31. Re3 {[%clk 0:01:56]}  Qg6 {[%clk 0:00:30]} 32. Qe2 {[%clk 0:01:54]}  Qe8 {[%clk 0:00:26]} 33. Nh4 {[%clk 0:01:48]}  Rd2 {[%clk 0:00:21]} 34. Qf3 {[%clk 0:01:48]}  R7d6 {[%clk 0:00:19]} 35. Nf5 {[%clk 0:01:40]}  Rd7 {[%clk 0:00:19]} 36. Nh4 {[%clk 0:01:40]}  R7d6 {[%clk 0:00:13]} 37. Nf5 {[%clk 0:01:38]}  Rd7 {[%clk 0:00:13]} 38. Qc6 {[%clk 0:01:38]}  Kf7 {[%clk 0:00:10]} 39. Nh4 {[%clk 0:01:34]}  R2d6 {[%clk 0:00:07]} 40. Qf3 {[%clk 0:01:34]}  Kf8 {[%clk 0:00:08]} 41. Nf5 {[%clk 0:01:28]}  Rd2 {[%clk 0:00:08]} 42. Nh4 {[%clk 0:01:28]}  Re7 {[%clk 0:00:08]} 43. f5 {[%clk 0:01:25]}  e5 {[%clk 0:00:08]} 44. Ng6+ {[%clk 0:01:25]}  Kf7 {[%clk 0:00:08]} 45. Qxh5 {[%clk 0:01:25]}  Qc6+ {[%clk 0:00:07]} 46. Kh3 {[%clk 0:01:24]}  Rxf2 {[%clk 0:00:02]} 47. Nxe5+ {[%clk 0:01:22]} 1-0


[Site "https://www.chess.com"]

[Event "Titled Tuesday Blitz June 28 Late 2022"]
[White "Herman, Daniel"]
[Black "Samsonkin, Artiom"]
[WhiteFideId "30935008"]
[BlackFideId "13503111"]
[WhiteElo "2406"]
[BlackElo "2739"]
[Result "0-1"]
[Round "01"]
[TimeControl "180+1"]
[Date "2022.06.29"]
[WhiteClock "0:00:04"]
[BlackClock "0:00:04"]

1. c4 {[%clk 0:02:58]}  Nf6 {[%clk 0:02:58]} 2. g3 {[%clk 0:02:57]}  e6 {[%clk 0:02:44]} 3. Bg2 {[%clk 0:02:57]}  g6 {[%clk 0:02:37]} 4. Nf3 {[%clk 0:02:49]}  Bg7 {[%clk 0:02:37]} 5. O-O {[%clk 0:02:48]}  b6 {[%clk 0:02:37]} 6. Ne5 {[%clk 0:02:34]}  c6 {[%clk 0:02:17]} 7. Nc3 {[%clk 0:02:29]}  Bb7 {[%clk 0:02:16]} 8. d4 {[%clk 0:02:25]}  d6 {[%clk 0:02:13]} 9. Nd3 {[%clk 0:02:20]}  Nbd7 {[%clk 0:02:11]} 10. e4 {[%clk 0:02:15]}  e5 {[%clk 0:02:03]} 11. d5 {[%clk 0:02:11]}  Qe7 {[%clk 0:01:53]} 12. b3 {[%clk 0:01:30]}  O-O {[%clk 0:01:48]} 13. Ba3 {[%clk 0:01:30]}  Nc5 {[%clk 0:01:46]} 14. Nxc5 {[%clk 0:01:18]}  bxc5 {[%clk 0:01:18]} 15. b4 {[%clk 0:01:12]}  cxb4 {[%clk 0:01:15]} 16. Bxb4 {[%clk 0:01:13]}  cxd5 {[%clk 0:00:46]} 17. cxd5 {[%clk 0:01:11]}  Ba6 {[%clk 0:00:43]} 18. Re1 {[%clk 0:01:07]}  Rfc8 {[%clk 0:00:42]} 19. Qa4 {[%clk 0:00:59]}  Bc4 {[%clk 0:00:39]} 20. Rec1 {[%clk 0:00:46]}  a5 {[%clk 0:00:38]} 21. Ba3 {[%clk 0:00:43]}  Bh6 {[%clk 0:00:34]} 22. Nb5 {[%clk 0:00:28]}  Bxc1 {[%clk 0:00:28]} 23. Rxc1 {[%clk 0:00:25]}  Bxb5 {[%clk 0:00:21]} 24. Rxc8+ {[%clk 0:00:25]}  Rxc8 {[%clk 0:00:20]} 25. Qxb5 {[%clk 0:00:26]}  h5 {[%clk 0:00:13]} 26. Qxa5 {[%clk 0:00:19]}  Rc2 {[%clk 0:00:13]} 27. f3 {[%clk 0:00:09]}  Kh7 {[%clk 0:00:08]} 28. h4 {[%clk 0:00:06]}  Qb7 {[%clk 0:00:06]} 29. Qb4 {[%clk 0:00:04]}  Qa7+ {[%clk 0:00:05]} 30. Kh2 {[%clk 0:00:04]}  Qf2 {[%clk 0:00:04]} 0-1


[Site "https://www.chess.com"]

[Event "Titled Tuesday Blitz June 28 Late 2022"]
[White "Huber, Benedikt"]
[Black "Makarian, Rudik"]
[WhiteFideId "12923583"]
[BlackFideId "44105681"]
[WhiteElo "2431"]
[BlackElo "2775"]
[Result "0-1"]
[Round "01"]
[TimeControl "180+1"]
[Date "2022.06.29"]
[WhiteClock "0:00:55"]
[BlackClock "0:01:30"]

1. d4 {[%clk 0:02:59]}  Nf6 {[%clk 0:02:57]} 2. Nc3 {[%clk 0:02:59]}  d6 {[%clk 0:02:50]} 3. e4 {[%clk 0:02:58]}  e5 {[%clk 0:02:51]} 4. Nf3 {[%clk 0:02:51]}  Nbd7 {[%clk 0:02:50]} 5. Bc4 {[%clk 0:02:51]}  Be7 {[%clk 0:02:49]} 6. h3 {[%clk 0:02:51]}  O-O {[%clk 0:02:49]} 7. O-O {[%clk 0:02:51]}  c6 {[%clk 0:02:50]} 8. a4 {[%clk 0:02:51]}  Qc7 {[%clk 0:02:48]} 9. Re1 {[%clk 0:02:51]}  h6 {[%clk 0:02:47]} 10. a5 {[%clk 0:02:50]}  Re8 {[%clk 0:02:47]} 11. Nh4 {[%clk 0:02:34]}  exd4 {[%clk 0:02:44]} 12. Qxd4 {[%clk 0:02:32]}  Ne5 {[%clk 0:02:44]} 13. Nf5 {[%clk 0:02:28]}  Bxf5 {[%clk 0:02:42]} 14. exf5 {[%clk 0:02:28]}  Nxc4 {[%clk 0:02:42]} 15. Qxc4 {[%clk 0:02:29]}  d5 {[%clk 0:02:42]} 16. Qd3 {[%clk 0:02:29]}  Bc5 {[%clk 0:02:39]} 17. Bd2 {[%clk 0:02:25]}  Re5 {[%clk 0:02:32]} 18. Ne2 {[%clk 0:02:12]}  Ne4 {[%clk 0:02:28]} 19. Nd4 {[%clk 0:02:09]}  Bxd4 {[%clk 0:02:08]} 20. Qxd4 {[%clk 0:02:07]}  Rxf5 {[%clk 0:02:09]} 21. Be3 {[%clk 0:01:52]}  Nd6 {[%clk 0:01:49]} 22. Bf4 {[%clk 0:01:35]}  Nb5 {[%clk 0:01:46]} 23. Bxc7 {[%clk 0:01:29]}  Nxd4 {[%clk 0:01:46]} 24. Rac1 {[%clk 0:01:23]}  Ne6 {[%clk 0:01:45]} 25. Bg3 {[%clk 0:01:12]}  d4 {[%clk 0:01:45]} 26. b4 {[%clk 0:01:08]}  Rb5 {[%clk 0:01:43]} 27. Rb1 {[%clk 0:01:04]}  Rd8 {[%clk 0:01:42]} 28. Red1 {[%clk 0:01:00]}  a6 {[%clk 0:01:36]} 29. Kf1 {[%clk 0:01:00]}  f6 {[%clk 0:01:35]} 30. Ke2 {[%clk 0:01:00]}  Kf7 {[%clk 0:01:36]} 31. Kd3 {[%clk 0:01:00]}  g5 {[%clk 0:01:35]} 32. Re1 {[%clk 0:00:57]}  h5 {[%clk 0:01:34]} 33. h4 {[%clk 0:00:56]}  gxh4 {[%clk 0:01:32]} 34. Bxh4 {[%clk 0:00:57]}  Nf4+ {[%clk 0:01:32]} 35. Kd2 {[%clk 0:00:56]}  Nxg2 {[%clk 0:01:31]} 36. Bg3 {[%clk 0:00:56]}  Nxe1 {[%clk 0:01:31]} 37. Rxe1 {[%clk 0:00:55]}  Rxb4 {[%clk 0:01:31]} 38. Bc7 {[%clk 0:00:54]}  Re8 {[%clk 0:01:30]} 39. Bb6 {[%clk 0:00:55]} 0-1


[Site "https://www.chess.com"]

[Event "Titled Tuesday Blitz June 28 Late 2022"]
[White "Ipek, Egehan"]
[Black "Yaksin, Oleg"]
[WhiteFideId "44523793"]
[BlackFideId "24105880"]
[WhiteElo "1413"]
[BlackElo "2256"]
[Result "1-0"]
[Round "01"]
[TimeControl "180+1"]
[Date "2022.06.29"]
[WhiteClock "0:00:05"]
[BlackClock "0:00:02"]

1. c4 {[%clk 0:03:00]}  Nf6 {[%clk 0:02:55]} 2. Nf3 {[%clk 0:03:00]}  e6 {[%clk 0:02:55]} 3. g3 {[%clk 0:03:00]}  d5 {[%clk 0:02:55]} 4. Bg2 {[%clk 0:03:01]}  Be7 {[%clk 0:02:55]} 5. O-O {[%clk 0:03:01]}  O-O {[%clk 0:02:55]} 6. d4 {[%clk 0:03:02]}  c6 {[%clk 0:02:55]} 7. Nc3 {[%clk 0:02:54]}  b6 {[%clk 0:02:52]} 8. Qc2 {[%clk 0:02:51]}  Bb7 {[%clk 0:02:50]} 9. b3 {[%clk 0:02:51]}  Nbd7 {[%clk 0:02:48]} 10. e4 {[%clk 0:02:51]}  dxe4 {[%clk 0:02:48]} 11. Nxe4 {[%clk 0:02:50]}  c5 {[%clk 0:02:45]} 12. Nxf6+ {[%clk 0:02:00]}  Bxf6 {[%clk 0:02:34]} 13. Bb2 {[%clk 0:01:59]}  cxd4 {[%clk 0:02:28]} 14. Nxd4 {[%clk 0:01:56]}  Bxg2 {[%clk 0:02:16]} 15. Kxg2 {[%clk 0:01:57]}  Qc7 {[%clk 0:02:07]} 16. Qe4 {[%clk 0:01:39]}  Nc5 {[%clk 0:01:57]} 17. Qf3 {[%clk 0:01:39]}  Rad8 {[%clk 0:01:39]} 18. Nb5 {[%clk 0:01:39]}  Qe7 {[%clk 0:01:27]} 19. Bxf6 {[%clk 0:01:38]}  gxf6 {[%clk 0:01:25]} 20. Rad1 {[%clk 0:01:32]}  a6 {[%clk 0:01:13]} 21. Nd4 {[%clk 0:01:32]}  Qb7 {[%clk 0:00:47]} 22. Qxb7 {[%clk 0:01:13]}  Nxb7 {[%clk 0:00:48]} 23. Nc6 {[%clk 0:01:14]}  Ra8 {[%clk 0:00:32]} 24. b4 {[%clk 0:01:09]}  Kg7 {[%clk 0:00:16]} 25. Rd7 {[%clk 0:01:08]}  Nd8 {[%clk 0:00:16]} 26. Nd4 {[%clk 0:00:43]}  f5 {[%clk 0:00:10]} 27. Re1 {[%clk 0:00:37]}  Kf6 {[%clk 0:00:09]} 28. Nb3 {[%clk 0:00:25]}  Rc8 {[%clk 0:00:09]} 29. c5 {[%clk 0:00:25]}  Nc6 {[%clk 0:00:07]} 30. a3 {[%clk 0:00:20]}  Rb8 {[%clk 0:00:06]} 31. cxb6 {[%clk 0:00:20]}  Rxb6 {[%clk 0:00:05]} 32. Nc5 {[%clk 0:00:13]}  Rbb8 {[%clk 0:00:01]} 33. Rd6 {[%clk 0:00:10]}  Ne5 {[%clk 0:00:01]} 34. Rxa6 {[%clk 0:00:09]}  Rfd8 {[%clk 0:00:01]} 35. Ra7 {[%clk 0:00:07]}  Nc4 {[%clk 0:00:01]} 36. Rc1 {[%clk 0:00:05]}  Nd6 {[%clk 0:00:02]} 37. Na6 {[%clk 0:00:04]}  f4 {[%clk 0:00:02]} 38. Nxb8 {[%clk 0:00:03]}  Rxb8 {[%clk 0:00:03]} 39. Rcc7 {[%clk 0:00:04]}  f3+ {[%clk 0:00:03]} 40. Kxf3 {[%clk 0:00:04]}  Ke5 {[%clk 0:00:03]} 41. Kg2 {[%clk 0:00:04]}  f5 {[%clk 0:00:03]} 42. Ra5+ {[%clk 0:00:05]}  Ke4 {[%clk 0:00:04]} 43. Rc6 {[%clk 0:00:05]}  Nf7 {[%clk 0:00:02]} 44. Rxe6+ {[%clk 0:00:05]}  Kd4 {[%clk 0:00:02]} 45. Rf6 {[%clk 0:00:06]}  Ne5 {[%clk 0:00:03]} 46. Rxf5 {[%clk 0:00:06]}  Nc4 {[%clk 0:00:03]} 47. Rfd5+ {[%clk 0:00:06]}  Kc3 {[%clk 0:00:04]} 48. Rac5 {[%clk 0:00:07]}  Re8 {[%clk 0:00:04]} 49. Rh5 {[%clk 0:00:05]}  Re2 {[%clk 0:00:04]} 50. Rh4 {[%clk 0:00:04]}  Kb3 {[%clk 0:00:01]} 51. Rhxc4 {[%clk 0:00:05]}  Rd2 {[%clk 0:00:01]} 52. Rc3+ {[%clk 0:00:05]}  Ka4 {[%clk 0:00:02]} 53. Ra5# {[%clk 0:00:05]} 1-0


[Site "https://www.chess.com"]